fUST/lending_fUST_20250217
["ID","MTS","AMOUNT","RATE_DAILY","PERIOD"]
[353334876,1739779761567,319.66,0.00011575,2]
[353334877,1739779766399,500.0,0.00010999,2]
[353334878,1739779766646,412.35705835,0.00011081,2]
[353334879,1739779770100,-87.64294165,0.00011081,2]
[353334880,1739779770124,-415.99750106,0.00011164,2]
[353334881,1739779771126,-874.51,0.00010999,2]
[353334882,1739779771150,-856.25666344,0.00011081,2]
[353334883,1739779772105,-18.25333656,0.00011081,2]
[353334884,1739779772130,-142.94249894,0.00011164,2]
[353334885,1739779772154,-874.51,0.00011164,2]
[353334886,1739779772176,-874.51,0.00011246,2]
[353334887,1739779772200,-874.51,0.00011328,2]
[353334888,1739779772223,-874.51,0.0001141,2]
[353334889,1739779772245,-874.51,0.00011492,2]
[353334890,1739779772267,-500.0,0.00012354,2]
[353334891,1739779772291,-500.0,0.00012354,2]
[353334892,1739779772313,-728.54,0.00012396,2]
[353334893,1739779772337,-273.27555002,0.00012396,2]
[353334894,1739779772373,874.51,0.00011575,2]
[353334895,1739779772505,874.51,0.00011657,2]
[353334896,1739779772627,500.0,0.00011614,2]
[353334897,1739779772786,874.51,0.00011739,2]
[353334898,1739779772871,500.0,0.00011696,2]
[353334899,1739779773072,874.51,0.00011821,2]
[353334900,1739779773115,500.0,0.00011778,2]
[353334901,1739779773351,874.51,0.00011903,2]
[353334902,1739779773605,874.51,0.00011986,2]
[353334903,1739779773699,500.0,0.00011861,2]
[353334904,1739779773859,874.51,0.00012068,2]
[353334905,1739779773950,261.81855035,0.00011943,2]
[353334954,1739779832324,-448.46367761,0.00010999,2]
[353334955,1739779832336,-51.53632239,0.00010999,2]
[353334956,1739779832346,-500.0,0.00010999,2]
[353334957,1739779832355,-500.0,0.00011081,2]
[353334958,1739779832365,-500.0,0.00011081,2]
[353334959,1739779832375,-500.0,0.00011164,2]
[353334960,1739779832385,-467.69529233,0.00011164,2]
[353334961,1739779832394,-500.0,0.00011246,2]
[353334962,1739779832535,-500.0,0.00011328,2]
[353334963,1739779832547,-645.30555338,0.0001141,2]
[353334964,1739779832558,-238.18144965,0.00011824,2]
[353334965,1739779832568,-238.18144965,0.00011943,2]
[353334967,1739779832578,-500.0,0.00012025,2]
[353334968,1739779832587,-500.0,0.00012107,2]
[353334969,1739779832597,-874.51,0.0001215,2]
[353334970,1739779832606,-504.05097176,0.00012189,2]
[353334971,1739779832616,-874.51,0.00012232,2]
[353334972,1739779832626,-874.51,0.00012314,2]
[353334973,1739779832635,-525.32444998,0.00012396,2]
[353334974,1739779832645,-874.51,0.00012396,2]
[353334975,1739779832655,-500.0,0.00012401,2]
[353334976,1739779832668,-601.31202332,0.0001246,2]
[353334977,1739779832678,-728.54,0.00012479,2]
[353334978,1739779832688,-798.6,0.00012479,2]
[353334979,1739779832698,-874.51,0.00012479,2]
[353334980,1739779832710,-547.31634246,0.00012483,2]
[353334981,1739779832720,-728.54,0.00012561,2]
[353334982,1739779832730,-552.86614508,0.00012561,2]
[353334983,1739779832743,-245.73385492,0.00012561,2]
[353334984,1739779832754,-874.51,0.00012561,2]
[353334985,1739779832763,-178.099,0.000126,2]
[353334986,1739779832773,-728.54,0.00012643,2]
[353334987,1739779832784,-798.6,0.00012643,2]
[353334988,1739779832793,-874.51,0.00012643,2]
[353334989,1739779832802,-728.54,0.00012725,2]
[353334990,1739779832812,-798.6,0.00012725,2]
[353334991,1739779832822,-874.51,0.00012725,2]
[353334992,1739779832831,-643.20946607,0.00012763,2]
[353335010,1739779838114,-850.64735748,0.00010889,2]
[353335011,1739779838124,-5291.15966221,0.00012763,2]
[353335012,1739779838169,-1504.3284045,0.00012763,2]
[353335013,1739779838180,-1082.32671512,0.00012769,2]
[353335014,1739779838189,-728.54,0.00012807,2]
[353335015,1739779838200,-798.6,0.00012807,2]
[353335016,1739779838210,-874.51,0.00012807,2]
[353335017,1739779838220,-728.66394789,0.0001289,2]
[353335018,1739779838229,-798.83207473,0.0001289,2]
[353335019,1739779838238,-874.61,0.0001289,2]
[353335020,1739779838247,-174.63690287,0.000129,2]
[353335021,1739779838257,-500.62274291,0.00012917,2]
[353335022,1739779838267,-163.9215773,0.0001298,2]
[353335023,1739779838277,-500.0,0.00013212,2]
[353335025,1739779838286,-264.213323,0.00013699,2]
[353335027,1739779838296,-225.6315069,0.00013699,2]
[353335029,1739779838306,-500.0,0.00013699,2]
[353335031,1739779838315,-174.63690285,0.00013712,2]
[353335033,1739779838325,-274.70902027,0.00013717,2]
[353335035,1739779838336,-500.0,0.00013717,2]
[353335036,1739779838345,-500.0,0.00013717,2]
[353335038,1739779838355,-500.0,0.00013717,2]
[353335040,1739779838365,-500.0,0.00013717,2]
[353335042,1739779838376,-153.0,0.00013733,2]
[353335044,1739779838386,-153.0,0.00013733,2]
[353335045,1739779838395,-153.0,0.00013733,2]
[353335046,1739779838405,-1000.0,0.0001376,2]
[353335047,1739779838415,-1000.0,0.00014265,2]
[353335048,1739779838424,-1000.0,0.00014265,2]
[353335049,1739779838434,-1000.0,0.00014265,2]
[353335050,1739779838444,-524.11952849,0.00014265,2]
[353335051,1739779838455,-174.63690285,0.00014759,2]
[353335052,1739779838465,-1500.0,0.00014762,2]
[353335053,1739779838475,-300.0,0.000148,5]
[353335054,1739779838490,-5280.95119959,0.000148,2]
[353335055,1739779838500,-165.48966014,0.000148,2]
[353335056,1739779838510,-165.48,0.000148,2]
[353335057,1739779838520,-206.3164661,0.000148,2]
[353335058,1739779838530,-206.3164661,0.000148,2]
[353335059,1739779838540,-206.3164661,0.000148,2]
[353335060,1739779838550,-206.3164661,0.000148,2]
[353335061,1739779838560,-206.3164661,0.000148,2]
[353335062,1739779838570,-206.3164661,0.000148,2]
[353335063,1739779838581,-206.3164661,0.000148,2]
[353335064,1739779838590,-206.3164661,0.000148,2]
[353335065,1739779838600,-206.3164661,0.000148,2]
[353335066,1739779838610,-206.3164661,0.000148,2]
[353335067,1739779838620,-206.3164661,0.000148,2]
[353335068,1739779838630,-206.3164661,0.000148,2]
[353335069,1739779838639,-206.3164661,0.000148,2]
[353335070,1739779838648,-206.3164661,0.000148,2]
[353335071,1739779838658,-206.3164661,0.000148,2]
[353335072,1739779838668,-206.3164661,0.000148,2]
[353335073,1739779838678,-206.3164661,0.000148,2]
[353335074,1739779838688,-206.3164661,0.000148,2]
[353335075,1739779838698,-206.3164661,0.000148,2]
[353335076,1739779838708,-206.31,0.000148,2]
[353335077,1739779838720,-151.76030032,0.000148,2]
[353335078,1739779838729,-151.76030032,0.000148,2]
[353335079,1739779838740,-151.76030032,0.000148,2]
[353335080,1739779838750,-151.76030032,0.000148,2]
[353335081,1739779838761,-151.76030032,0.000148,2]
[353335082,1739779838771,-151.76030032,0.000148,2]
[353335083,1739779838781,-151.76030032,0.000148,2]
[353335084,1739779838792,-151.76030032,0.000148,2]
[353335085,1739779838801,-151.76030032,0.000148,2]
[353335086,1739779838811,-151.76030032,0.000148,2]
[353335087,1739779838820,-151.76030032,0.000148,2]
[353335088,1739779838830,-151.76030032,0.000148,2]
[353335089,1739779838840,-151.76030032,0.000148,2]
[353335090,1739779838849,-151.76030032,0.000148,2]
[353335091,1739779838859,-151.76030032,0.000148,2]
[353335092,1739779838869,-151.76030032,0.000148,2]
[353335093,1739779838879,-151.76030032,0.000148,2]
[353335094,1739779838888,-151.76,0.000148,2]
[353335095,1739779838897,-500.0,0.00014873,2]
[353335096,1739779838907,-521.98181344,0.00014873,2]
[353335097,1739779838921,-382.59355553,0.00014873,2]
[353335098,1739779838931,-500.0,0.00014873,2]
[353335099,1739779838940,-480.08647269,0.0001489,2]
[353335100,1739779838950,-160.0,0.00014899,2]
[353335101,1739779838960,-548.61166477,0.00014899,2]
[353335102,1739779838970,-545.88335336,0.00014899,2]
[353335103,1739779838980,-500.0,0.00014899,2]
[353335104,1739779838990,-374.22490616,0.00014899,2]
[353335105,1739779839000,-500.0,0.00014899,2]
[353335106,1739779839009,-150.0,0.000149,2]
[353335107,1739779839020,-159.228398,0.000149,2]
[353335108,1739779839029,-159.228398,0.000149,2]
[353335109,1739779839039,-151.0,0.000149,2]
[353335110,1739779839049,-151.0,0.000149,2]
[353335111,1739779839059,-151.0,0.000149,2]
[353335112,1739779839069,-151.0,0.000149,2]
[353335113,1739779839078,-151.0,0.000149,2]
[353335114,1739779839087,-151.0,0.000149,2]
[353335115,1739779839097,-151.0,0.000149,2]
[353335116,1739779839106,-733800.17011,0.000149,2]
[353335117,1739779839117,-238.340169,0.000149,2]
[353335118,1739779839127,-238.340169,0.000149,2]
[353335119,1739779839137,-432.36699328,0.000149,2]
[353335120,1739779839146,-2950.0,0.0001495,2]
[353335121,1739779839156,-184.97113629,0.00015266,2]
[353335122,1739779839169,-1500.0,0.00015266,2]
[353335123,1739779839179,-1500.0,0.00015266,2]
[353335124,1739779839189,-515.82,0.00015389,7]
[353335125,1739779839199,-500.0,0.00015389,7]
[353335126,1739779839208,-500.0,0.00015389,7]
[353335127,1739779839218,-500.0,0.00015389,7]
[353335128,1739779839227,-500.0,0.00015389,7]
[353335129,1739779839237,-500.0,0.00015389,7]
[353335130,1739779839246,-500.0,0.00015389,7]
[353335131,1739779839256,-500.0,0.00015389,7]
[353335132,1739779839266,-500.0,0.00015389,7]
[353335133,1739779839275,-500.0,0.00015389,7]
[353335134,1739779839285,-500.0,0.00015389,7]
[353335135,1739779839295,-500.0,0.00015389,7]
[353335136,1739779839304,-500.0,0.00015389,7]
[353335137,1739779839314,-500.0,0.00015389,7]
[353335138,1739779839323,-500.0,0.00015389,7]
[353335139,1739779839333,-500.0,0.00015389,7]
[353335140,1739779839343,-500.0,0.00015389,7]
[353335141,1739779839353,-500.0,0.00015389,7]
[353335142,1739779839363,-500.0,0.00015389,7]
[353335143,1739779839373,-500.0,0.00015389,7]
[353335144,1739779839383,-500.0,0.00015389,7]
[353335145,1739779839394,-500.0,0.00015389,7]
[353335146,1739779839404,-500.0,0.00015389,7]
[353335147,1739779839416,-500.0,0.00015389,7]
[353335148,1739779839426,-500.0,0.00015389,7]
[353335149,1739779839436,-500.0,0.00015389,7]
[353335150,1739779839445,-500.0,0.00015389,7]
[353335151,1739779839456,-500.0,0.00015389,7]
[353335152,1739779839466,-500.0,0.00015389,7]
[353335153,1739779839476,-500.0,0.00015389,7]
[353335154,1739779839485,-500.0,0.00015389,7]
[353335155,1739779839497,-500.0,0.00015389,7]
[353335156,1739779839506,-500.0,0.00015389,7]
[353335157,1739779839516,-452.36,0.00015389,7]
[353335158,1739779839526,-500.0,0.00015389,7]
[353335159,1739779839536,-1000.0,0.00015421,2]
[353335160,1739779839550,-1000.0,0.00015421,2]
[353335161,1739779839561,-480.08647269,0.0001549,2]
[353335162,1739779839570,-13555.0,0.000155,5]
[353335163,1739779839579,-150.0,0.00015522,2]
[353335164,1739779839589,-184.478,0.00015522,2]
[353335165,1739779839598,-168.48787744,0.00015671,2]
[353335166,1739779839607,-174.63690285,0.00015806,2]
[353335167,1739779839616,-151.0,0.0001598,2]
[353335168,1739779839626,-223.376638,0.0001598,2]
[353335169,1739779839635,-223.376638,0.0001598,2]
[353335170,1739779839644,-160.0,0.00015989,2]
[353335171,1739779839653,-480.08647269,0.0001599,2]
[353335172,1739779839665,-5000.0,0.00016,7]
[353335173,1739779839675,-5000.0,0.00016,7]
[353335174,1739779839684,-5000.0,0.00016,7]
[353335175,1739779839694,-5000.0,0.00016,7]
[353335176,1739779839703,-5000.0,0.00016,7]
[353335177,1739779839718,-2000.00908278,0.00016,7]
[353335178,1739779839727,-3000.0,0.00016,2]
[353335179,1739779839737,-199.899999,0.00016,7]
[353335180,1739779839747,-151.0,0.00016,2]
[353335181,1739779839757,-151.0,0.00016,2]
[353335182,1739779839769,-151.0,0.00016,2]
[353335183,1739779839779,-904.807789,0.00016,2]
[353335185,1739779839789,-904.807789,0.00016,2]
[353335186,1739779839799,-3000.0,0.0001601,2]
[353335187,1739779839809,-3000.0,0.0001602,2]
[353335188,1739779839819,-3000.0,0.0001603,2]
[353335189,1739779839829,-238.340169,0.0001603,2]
[353335190,1739779839839,-238.340169,0.0001603,2]
[353335191,1739779839849,-3000.0,0.0001604,2]
[353335192,1739779839859,-151.0,0.0001604,2]
[353335193,1739779839869,-223.376638,0.0001604,2]
[353335194,1739779839879,-223.376638,0.0001604,2]
[353335195,1739779839888,-159.228398,0.0001604,2]
[353335197,1739779839898,-159.228398,0.0001604,2]
[353335198,1739779839908,-151.0,0.0001604,2]
[353335199,1739779839919,-151.0,0.0001604,2]
[353335200,1739779839928,-151.0,0.0001604,2]
[353335201,1739779839938,-151.0,0.0001604,2]
[353335202,1739779839947,-151.0,0.0001604,2]
[353335203,1739779839956,-151.0,0.0001604,2]
[353335204,1739779839966,-151.0,0.0001604,2]
[353335205,1739779839976,-334.0,0.0001605,2]
[353335206,1739779839985,-3000.0,0.0001605,2]
[353335208,1739779839995,-480.08647269,0.0001605,2]
[353335209,1739779840004,-500.0,0.00016059,2]
[353335210,1739779840013,-3000.0,0.0001606,2]
[353335211,1739779840023,-3000.0,0.0001607,2]
[353335212,1739779840032,-3000.0,0.0001608,2]
[353335214,1739779840042,-3000.0,0.0001609,2]
[353335215,1739779840051,-1687.0,0.000161,2]
[353335217,1739779840061,-3000.0,0.000161,2]
[353335219,1739779840071,-3000.0,0.0001611,2]
[353335220,1739779840080,-3000.0,0.0001612,2]
[353335221,1739779840089,-3000.0,0.0001613,2]
[353335222,1739779840099,-3000.0,0.0001614,2]
[353335223,1739779840108,-3000.0,0.0001615,2]
[353335224,1739779840117,-480.08647269,0.0001615,2]
[353335226,1739779840127,-3000.0,0.0001616,2]
[353335227,1739779840221,-269.418406,0.0001616,2]
[353335228,1739779840231,-269.418406,0.0001616,2]
[353335229,1739779840240,-820.82,0.00016164,2]
[353335230,1739779840249,-3000.0,0.0001617,2]
[353335231,1739779840259,-3000.0,0.0001618,2]
[353335233,1739779840269,-3000.0,0.0001619,2]
[353335234,1739779840278,-3000.0,0.000162,2]
[353335235,1739779840287,-7073.11423314,0.000162,2]
[353335236,1739779840297,-1406.22779386,0.000162,2]
[353335237,1739779840307,-3000.0,0.0001621,2]
[353335238,1739779840316,-3000.0,0.0001622,2]
[353335240,1739779840326,-827.6854941,0.00016225,2]
[353335242,1739779840336,-3000.0,0.0001623,2]
[353335243,1739779840345,-3000.0,0.0001624,2]
[353335244,1739779840355,-151.0,0.0001624,2]
[353335245,1739779840364,-151.0,0.0001624,2]
[353335246,1739779840374,-904.807789,0.0001624,2]
[353335247,1739779840384,-904.807789,0.0001624,2]
[353335248,1739779840394,-3000.0,0.0001625,2]
[353335249,1739779840403,-480.08647269,0.0001625,2]
[353335250,1739779840415,-3000.0,0.0001626,2]
[353335251,1739779840425,-3000.0,0.0001627,2]
[353335252,1739779840434,-3000.0,0.0001628,2]
[353335253,1739779840444,-480.08647269,0.0001628,2]
[353335254,1739779840453,-3000.0,0.00016288,2]
[353335255,1739779840463,-3000.0,0.0001629,2]
[353335256,1739779840473,-159.228398,0.0001629,2]
[353335257,1739779840483,-159.228398,0.0001629,2]
[353335258,1739779840491,-151.0,0.0001629,2]
[353335259,1739779840501,-151.0,0.0001629,2]
[353335260,1739779840510,-151.0,0.0001629,2]
[353335261,1739779840519,-151.0,0.0001629,2]
[353335262,1739779840529,-151.0,0.0001629,2]
[353335263,1739779840538,-151.0,0.0001629,2]
[353335264,1739779840548,-151.0,0.0001629,2]
[353335265,1739779840557,-960.17294538,0.0001629,2]
[353335266,1739779840567,-238.340169,0.0001629,2]
[353335267,1739779840576,-238.340169,0.0001629,2]
[353335268,1739779840586,-3000.0,0.000163,2]
[353335269,1739779840596,-159747.79681592,0.000163,3]
[353335270,1739779840606,-151.0,0.000163,2]
[353335271,1739779840616,-189.0,0.000163,2]
[353335272,1739779840626,-223.376638,0.000163,2]
[353335273,1739779840635,-223.376638,0.000163,2]
[353335274,1739779840645,-340.07364,0.000163,6]
[353335275,1739779840654,-159.228398,0.000163,2]
[353335276,1739779840665,-159.228398,0.000163,2]
[353335277,1739779840675,-151.0,0.000163,2]
[353335278,1739779840685,-151.0,0.000163,2]
[353335279,1739779840695,-200.714001,0.000163,2]
[353335280,1739779840706,-151.0,0.000163,2]
[353335281,1739779840716,-151.0,0.000163,2]
[353335282,1739779840726,-151.0,0.000163,2]
[353335283,1739779840735,-151.0,0.000163,2]
[353335284,1739779840746,-151.0,0.000163,2]
[353335285,1739779840755,-238.340169,0.000163,2]
[353335286,1739779840764,-238.340169,0.000163,2]
[353335287,1739779840774,-904.807789,0.000163,2]
[353335288,1739779840783,-269.418406,0.000163,2]
[353335289,1739779840797,-904.807789,0.000163,2]
[353335290,1739779840806,-269.418406,0.000163,2]
[353335291,1739779840816,-154.45701613,0.0001631,2]
[353335292,1739779840825,-154.45701613,0.0001631,2]
[353335293,1739779840835,-154.45701613,0.0001631,2]
[353335294,1739779840844,-154.45701613,0.0001631,2]
[353335295,1739779840854,-154.45,0.0001631,2]
[353335296,1739779840863,-481.40508757,0.0001631,2]
[353335297,1739779840873,-481.40508757,0.0001631,2]
[353335298,1739779840883,-481.40508757,0.0001631,2]
[353335299,1739779840893,-481.40508757,0.0001631,2]
[353335300,1739779840903,-481.40508757,0.0001631,2]
[353335301,1739779840913,-481.40508757,0.0001631,2]
[353335302,1739779840922,-481.40508757,0.0001631,2]
[353335303,1739779840931,-481.40508757,0.0001631,2]
[353335304,1739779840941,-481.40508757,0.0001631,2]
[353335305,1739779840950,-481.40508757,0.0001631,2]
[353335306,1739779840959,-481.40508757,0.0001631,2]
[353335307,1739779840969,-481.40508757,0.0001631,2]
[353335308,1739779840979,-481.40508757,0.0001631,2]
[353335309,1739779840989,-481.40508757,0.0001631,2]
[353335310,1739779840999,-481.40508757,0.0001631,2]
[353335311,1739779841009,-481.40508757,0.0001631,2]
[353335312,1739779841018,-481.40508757,0.0001631,2]
[353335313,1739779841028,-481.40508757,0.0001631,2]
[353335314,1739779841038,-481.40508757,0.0001631,2]
[353335315,1739779841048,-481.4,0.0001631,2]
[353335316,1739779841058,-318.69663066,0.0001631,2]
[353335317,1739779841067,-318.69663066,0.0001631,2]
[353335318,1739779841076,-318.69663066,0.0001631,2]
[353335319,1739779841085,-318.69663066,0.0001631,2]
[353335320,1739779841095,-318.69663066,0.0001631,2]
[353335321,1739779841103,-318.69663066,0.0001631,2]
[353335322,1739779841113,-318.69663066,0.0001631,2]
[353335323,1739779841122,-318.69663066,0.0001631,2]
[353335324,1739779841132,-318.69663066,0.0001631,2]
[353335325,1739779841141,-318.69663066,0.0001631,2]
[353335326,1739779841151,-318.69663066,0.0001631,2]
[353335327,1739779841162,-318.69663066,0.0001631,2]
[353335328,1739779841172,-318.69663066,0.0001631,2]
[353335329,1739779841181,-318.69663066,0.0001631,2]
[353335330,1739779841190,-318.69663066,0.0001631,2]
[353335331,1739779841199,-318.69663066,0.0001631,2]
[353335332,1739779841209,-318.69663066,0.0001631,2]
[353335333,1739779841218,-318.69663066,0.0001631,2]
[353335334,1739779841227,-318.69663066,0.0001631,2]
[353335335,1739779841237,-318.69,0.0001631,2]
[353335336,1739779841247,-3000.0,0.0001631,2]
[353335337,1739779841256,-3000.0,0.0001632,2]
[353335338,1739779841266,-3000.0,0.0001633,2]
[353335339,1739779841275,-3000.0,0.0001634,2]
[353335340,1739779841284,-3000.0,0.0001635,2]
[353335341,1739779841293,-3000.0,0.0001636,2]
[353335342,1739779841303,-1601.58126671,0.0001637,2]
[353335343,1739779841318,-1398.41873329,0.0001637,2]
[353335344,1739779841327,-3000.0,0.0001638,2]
[353335345,1739779841337,-7073.11423309,0.00016389,2]
[353335346,1739779841347,-3000.0,0.0001639,2]
[353335347,1739779841356,-500.0,0.00016391,2]
[353335348,1739779841366,-3000.0,0.000164,2]
[353335349,1739779841375,-151.0,0.00016408,2]
[353335350,1739779841385,-223.376638,0.00016408,2]
[353335351,1739779841394,-223.376638,0.00016408,2]
[353335352,1739779841404,-223.376638,0.00016408,2]
[353335353,1739779841416,-223.376638,0.00016408,2]
[353335354,1739779841426,-223.376638,0.00016408,2]
[353335355,1739779841435,-223.376638,0.00016408,2]
[353335356,1739779841445,-159.228398,0.00016408,2]
[353335357,1739779841455,-159.228398,0.00016408,2]
[353335358,1739779841464,-159.228398,0.00016408,2]
[353335359,1739779841473,-159.228398,0.00016408,2]
[353335360,1739779841482,-159.228398,0.00016408,2]
[353335361,1739779841491,-159.228398,0.00016408,2]
[353335362,1739779841501,-151.0,0.00016409,2]
[353335363,1739779841510,-275.63170026,0.00016409,2]
[353335364,1739779841520,-151.0,0.00016409,2]
[353335365,1739779841529,-151.0,0.00016409,2]
[353335366,1739779841539,-151.0,0.00016409,2]
[353335367,1739779841548,-151.0,0.00016409,2]
[353335368,1739779841558,-151.0,0.00016409,2]
[353335369,1739779841567,-151.0,0.00016409,2]
[353335370,1739779841577,-151.0,0.00016409,2]
[353335371,1739779841587,-151.0,0.00016409,2]
[353335372,1739779841597,-151.0,0.00016409,2]
[353335373,1739779841606,-151.0,0.00016409,2]
[353335374,1739779841616,-151.0,0.00016409,2]
[353335375,1739779841625,-151.0,0.00016409,2]
[353335376,1739779841634,-61.14195635,0.00016409,2]
[353335377,1739779841706,-89.85804365,0.00016409,2]
[353335378,1739779841718,-19123.44365635,0.0001641,5]
[353335379,1739779841729,-15999.06871695,0.0001641,5]
[353335380,1739779841739,-3219.07268264,0.0001641,5]
[353335381,1739779841748,-9941.82884556,0.0001641,10]
[353335410,1739779843360,-151.0,0.0001616,2]
[353335411,1739779843370,-151.0,0.000163,2]
[353335412,1739779843380,-22117.5464321,0.0001641,10]
[353335420,1739779846111,-151.0,0.0001616,2]
[353335421,1739779846121,-151.0,0.000163,2]
[353335422,1739779846131,-322.7826615,0.0001641,10]
[353335425,1739780044422,6374.0,0.00019,120]
[353335432,1739780372746,1302.22,5e-05,2]
[353335434,1739780657107,580.0,0.00019,120]
[353335435,1739780734146,-300.0,9.545e-05,2]
[353335436,1739780734170,-300.0,9.641e-05,2]
[353335437,1739780734194,-300.0,9.934e-05,2]
[353335438,1739780734218,-500.0,9.935e-05,2]
[353335439,1739780734241,-332.85284629,9.935e-05,2]
[353335440,1739780755111,-349.08085364,9.836e-05,2]
[353335441,1739780755131,-169.41768148,9.935e-05,2]
[353335442,1739780755151,-500.0,9.935e-05,2]
[353335443,1739780755172,-500.0,9.935e-05,2]
[353335444,1739780755191,-500.0,9.935e-05,2]
[353335445,1739780755211,-500.0,9.935e-05,2]
[353335446,1739780755231,-500.0,9.935e-05,2]
[353335447,1739780755251,-500.0,9.935e-05,2]
[353335448,1739780755272,-547.22491615,9.935e-05,2]
[353335449,1739780755293,-479.05576587,9.935e-05,2]
[353335450,1739780833149,-300.0,9.934e-05,2]
[353335451,1739780833292,-20.94423413,9.935e-05,2]
[353335452,1739780833319,-500.0,9.935e-05,2]
[353335453,1739780833339,-501.37013743,9.935e-05,2]
[353335454,1739780833361,-138.48341901,9.935e-05,2]
[353335455,1739780843094,-153.98060602,9.935e-05,2]
[353335456,1739780846117,-207.53597497,9.935e-05,2]
[353335457,1739780846141,-500.0,9.935e-05,2]
[353335458,1739780846163,-502.46635805,9.935e-05,2]
[353335459,1739780846185,-500.0,9.935e-05,2]
[353335460,1739780846207,-500.0,9.935e-05,2]
[353335461,1739780846229,-500.0,9.935e-05,2]
[353335462,1739780846249,-500.0,9.935e-05,2]
[353335463,1739780846270,-500.0,9.935e-05,2]
[353335464,1739780846291,-500.0,9.935e-05,2]
[353335465,1739780846313,-500.0,9.935e-05,2]
[353335466,1739780846333,-509.20076431,9.935e-05,2]
[353335467,1739780846355,-500.0,9.935e-05,2]
[353335468,1739780846375,-500.0,9.935e-05,2]
[353335469,1739780846395,-500.0,9.935e-05,2]
[353335470,1739780846416,-500.0,9.935e-05,2]
[353335471,1739780846437,-500.0,9.935e-05,2]
[353335472,1739780846459,-607.04,9.935e-05,2]
[353335473,1739780846481,-500.0,9.935e-05,2]
[353335474,1739780846503,-500.0,9.935e-05,2]
[353335475,1739780846524,-500.0,9.935e-05,2]
[353335476,1739780846545,-500.0,9.935e-05,2]
[353335477,1739780846567,-500.0,9.935e-05,2]
[353335478,1739780846589,-257.68976837,9.935e-05,2]
[353335479,1739780851086,-197.38580063,9.8e-05,3]
[353335480,1739780852090,-1155.6692744,9.8e-05,3]
[353335481,1739780853093,-4286.34843295,9.8e-05,3]
[353335482,1739780915249,1032.40704363,0.00016421,90]
[353335485,1739780945152,-464.058698,9.799e-05,2]
[353335486,1739780945175,-407.57474546,9.799e-05,2]
[353335487,1739780945199,-520.49267252,9.799e-05,2]
[353335488,1739780945222,-129723.51027017,9.8e-05,3]
[353335489,1739780945245,-242.31023163,9.935e-05,2]
[353335490,1739780945268,-500.0,9.935e-05,2]
[353335491,1739780945293,-500.0,9.935e-05,2]
[353335492,1739780945316,-500.0,9.935e-05,2]
[353335493,1739780945339,-500.0,9.935e-05,2]
[353335494,1739780945361,-500.0,9.935e-05,2]
[353335495,1739780945384,-500.0,9.935e-05,2]
[353335496,1739780945406,-500.0,9.935e-05,2]
[353335497,1739780945428,-500.0,9.935e-05,2]
[353335498,1739780945450,-500.0,9.935e-05,2]
[353335499,1739780945473,-500.0,9.935e-05,2]
[353335500,1739780945495,-500.0,9.935e-05,2]
[353335501,1739780945516,-500.0,9.935e-05,2]
[353335502,1739780945538,-500.0,9.935e-05,2]
[353335503,1739780945560,-500.0,9.935e-05,2]
[353335504,1739780945582,-500.0,9.935e-05,2]
[353335505,1739780945605,-500.0,9.935e-05,2]
[353335506,1739780945627,-500.9795614,9.935e-05,2]
[353335507,1739780945648,-500.0,9.935e-05,2]